bitfinex/quotes_BTCUSD_20250916
["timestamp","ask_amount","ask_price","bid_price","bid_amount"]
[1758050120501,0.55975725,116710.0,116700.0,0.6181785]
[1758050120649,0.58619725,116710.0,116700.0,1.1181785]
[1758050121921,0.58619725,116710.0,116700.0,1.10942105]
[1758050122280,0.43559818,116710.0,116700.0,1.10942105]
[1758050122757,0.03154708,116710.0,116700.0,1.10942105]
[1758050122959,0.6069631,116710.0,116700.0,0.84030105]
[1758050123163,0.6069631,116710.0,116700.0,1.10938105]
[1758050124144,0.6069631,116710.0,116700.0,0.66892145]
[1758050124365,0.6069631,116710.0,116700.0,0.85146]
[1758050124589,0.6069631,116710.0,116700.0,0.85148]
[1758050125044,0.6069631,116710.0,116700.0,0.76916]
[1758050125270,0.6069631,116710.0,116700.0,0.9405396]
[1758050125485,0.22865845,116710.0,116700.0,0.9405396]
[1758050125713,0.6069631,116710.0,116700.0,0.9405396]
[1758050125931,0.202912,116710.0,116700.0,0.9405396]
[1758050126174,0.6069631,116710.0,116700.0,0.9405396]
[1758050127047,0.202912,116710.0,116700.0,0.9405396]
[1758050127474,0.202912,116710.0,116700.0,0.76916]
[1758050127830,0.6069631,116710.0,116700.0,0.76916]
[1758050128495,0.202912,116710.0,116700.0,0.9405396]
[1758050128699,0.6069631,116710.0,116700.0,0.9405396]
[1758050129859,0.6069631,116710.0,116700.0,0.76916]
[1758050130067,0.6069631,116710.0,116700.0,0.9405396]
[1758050130283,0.03154708,116710.0,116700.0,0.9405396]
[1758050130502,0.6069631,116710.0,116700.0,0.9405396]
[1758050133411,0.6069631,116710.0,116700.0,0.76916]
[1758050134131,0.6069631,116710.0,116700.0,0.9405396]
[1758050134975,0.6069631,116710.0,116700.0,0.76916]
[1758050136284,0.6069631,116710.0,116700.0,0.9405396]
[1758050136536,0.6069631,116710.0,116700.0,0.76916]
[1758050137119,0.6069631,116710.0,116700.0,0.9405396]
[1758050137328,0.6069631,116710.0,116700.0,0.76916]
[1758050139010,0.68827592,116710.0,116700.0,0.5]
[1758050139222,1.09232702,116710.0,116700.0,0.5]
[1758050139420,1.09232702,116710.0,116700.0,0.76932]
[1758050139969,1.04551718,116710.0,116700.0,0.5]
[1758050140587,1.04819738,116710.0,116700.0,0.5]
[1758050140943,1.04719738,116710.0,116700.0,0.5]
[1758050141374,1.05019738,116710.0,116700.0,0.501]
[1758050141790,1.07394844,116710.0,116700.0,0.501]
[1758050141991,1.07794844,116710.0,116700.0,0.501]
[1758050142801,0.80862844,116710.0,116700.0,0.501]
[1758050143197,0.99387542,116710.0,116700.0,0.501]
[1758050143800,0.99383542,116710.0,116700.0,0.501]
[1758050144007,0.99381922,116710.0,116700.0,0.501]
[1758050144214,0.99381922,116710.0,116700.0,0.001]
[1758050145233,0.72461922,116710.0,116700.0,0.001]
[1758050145441,0.99377922,116710.0,116700.0,0.001]
[1758050145815,0.72461922,116710.0,116700.0,0.001]
[1758050146025,1.08028067,116710.0,116700.0,0.001]
[1758050146974,0.81112067,116710.0,116700.0,0.001]
[1758050147189,1.08024067,116710.0,116700.0,0.001]
[1758050148782,0.81112067,116710.0,116700.0,0.001]
[1758050148980,1.08020067,116710.0,116700.0,0.001]
[1758050153364,1.08019535,116710.0,116700.0,0.001]
[1758050153976,1.0801957,116710.0,116700.0,0.001]
[1758050158171,1.08287597,116710.0,116700.0,0.001]
[1758050159918,1.082879,116710.0,116700.0,0.001]
[1758050160345,0.99637755,116710.0,116700.0,0.001]
[1758050164604,0.99638707,116710.0,116700.0,0.001]
[1758050166376,1.0231784,116710.0,116700.0,0.001]
[1758050167030,1.04638707,116710.0,116700.0,0.001]
[1758050171972,1.04641239,116710.0,116700.0,0.001]
[1758050172675,1.13291384,116710.0,116700.0,0.001]
[1758050175222,0.86383384,116710.0,116700.0,0.001]
[1758050175437,0.72733239,116710.0,116700.0,0.001]
[1758050175629,0.99581239,116710.0,116700.0,0.001]
[1758050175891,0.72733239,116710.0,116700.0,0.001]
[1758050176116,0.99610239,116710.0,116700.0,0.001]
[1758050176302,0.99303239,116710.0,116700.0,0.001]
[1758050176595,0.99627239,116710.0,116700.0,0.001]
[1758050177627,0.72759239,116710.0,116700.0,0.001]
[1758050177822,0.99623239,116710.0,116700.0,0.001]
[1758050178019,0.61093904,116710.0,116700.0,0.1723796]
[1758050178456,0.25167921,116710.0,116700.0,0.1723796]
[1758050178701,0.60825877,116710.0,116700.0,0.001]
[1758050181037,0.59218289,116710.0,116700.0,0.001]
[1758050185841,0.58894289,116710.0,116700.0,0.00311]
[1758050186047,0.59218289,116710.0,116700.0,0.00311]
[1758050186815,0.23292306,116710.0,116700.0,0.001]
[1758050187038,0.59218289,116710.0,116700.0,0.001]
[1758050187999,0.59218289,116710.0,116700.0,0.1723796]
[1758050188231,0.67868434,116710.0,116700.0,0.001]
[1758050190106,0.59218289,116710.0,116700.0,0.001]
[1758050190668,0.03289814,116710.0,116700.0,0.2009796]
[1758050191050,0.03289814,116710.0,116700.0,0.20938923]
[1758050191224,0.03289814,116710.0,116700.0,0.47790923]
[1758050191383,0.03289814,116710.0,116700.0,0.26591991]
[1758050191587,0.03289814,116710.0,116700.0,0.2009796]
[1758050191829,0.03289814,116710.0,116700.0,0.1777096]
[1758050192027,0.03289814,116710.0,116700.0,0.4695596]
[1758050193614,0.03289814,116710.0,116700.0,0.47829142]
[1758050193762,0.56140917,116710.0,116700.0,0.1979596]
[1758050193982,0.56668917,116710.0,116700.0,0.0011]
[1758050194191,0.20622828,116710.0,116700.0,0.1724796]
[1758050194394,0.56548811,116710.0,116700.0,0.1724796]
[1758050195180,0.56548811,116710.0,116700.0,0.1744496]
[1758050195181,0.56229811,116710.0,116700.0,0.1744496]
[1758050195397,0.00513336,116710.0,116700.0,0.1744496]
[1758050195621,0.00513336,116710.0,116700.0,0.26488795]
[1758050195821,0.00513336,116710.0,116700.0,0.53340795]
[1758050196611,0.00513336,116710.0,116700.0,0.4693296]
[1758050197435,0.53784811,116710.0,116700.0,0.4663396]
[1758050197629,0.36648319,116710.0,116700.0,0.4429696]
[1758050197864,0.00513336,116710.0,116700.0,0.4459596]
[1758050198047,0.00513336,116710.0,116700.0,0.4693296]
[1758050198465,0.00513336,116710.0,116700.0,0.53341195]
[1758050199253,0.00513336,116710.0,116700.0,0.4693296]
[1758050203462,0.00513336,116710.0,116700.0,0.55583105]
[1758050203680,0.00513336,116710.0,116700.0,0.9598056]
[1758050203905,0.00513336,116710.0,116700.0,0.55583105]
[1758050204321,0.00513336,116710.0,116700.0,0.9598056]
[1758050206208,0.00513336,116710.0,116700.0,0.28731105]
[1758050206408,0.00513336,116710.0,116700.0,0.55599105]
[1758050206566,0.00513336,116710.0,116700.0,0.9599656]
[1758050207065,0.00513336,116710.0,116700.0,0.55599105]
[1758050207818,0.00513336,116710.0,116700.0,1.2999656]
[1758050210752,0.00513336,116710.0,116700.0,1.7999656]
[1758050212132,0.00513336,116710.0,116700.0,1.39599105]
[1758050212367,0.00513336,116710.0,116700.0,1.7999656]
[1758050212579,0.00513336,116710.0,116700.0,1.8822856]
[1758050214383,0.00513336,116710.0,116700.0,1.47815105]
[1758050214594,0.00513336,116710.0,116700.0,1.8821256]
[1758050216613,0.00513336,116710.0,116700.0,1.20963105]
[1758050216811,0.00513336,116710.0,116700.0,1.47811105]
[1758050217605,0.40910791,116710.0,116700.0,1.47811105]
[1758050220533,0.40910791,116710.0,116700.0,0.5011]
[1758050220534,0.58566283,116710.0,116700.0,0.5011]
[1758050220754,1.0458092,116710.0,116700.0,0.5011]
[1758050220987,1.01297738,116710.0,116700.0,0.5011]
[1758050221195,0.60900283,116710.0,116700.0,0.76962]
[1758050221416,0.63475046,116710.0,116700.0,0.76962]
[1758050221637,1.03872501,116710.0,116700.0,0.5011]
[1758050221839,1.12522646,116710.0,116700.0,0.76966]
[1758050222055,1.14128421,116710.0,116700.0,0.76966]
[1758050223242,1.12522646,116710.0,116700.0,0.76966]
[1758050223468,1.15537836,116710.0,116700.0,0.5011]
[1758050223611,1.17142912,116710.0,116700.0,0.501]
[1758050224253,1.15537836,116710.0,116700.0,0.501]
[1758050226036,1.24187981,116710.0,116700.0,0.501]
[1758050226709,1.24187981,116710.0,116700.0,0.001]
[1758050227138,1.42385836,116710.0,116700.0,0.001]
[1758050227779,0.75140381,116710.0,116700.0,0.001]
[1758050231482,1.15537836,116710.0,116700.0,0.001]
[1758050233378,1.42401836,116710.0,116700.0,0.001]
[1758050235509,1.15537836,116710.0,116700.0,0.001]
[1758050235874,1.51043981,116710.0,116700.0,0.001]
[1758050236142,1.10646526,116710.0,116700.0,0.001]
[1758050237791,1.51043981,116710.0,116700.0,0.001]
[1758050239743,1.24187981,116710.0,116700.0,0.001]
[1758050239960,1.51043981,116710.0,116700.0,0.001]
[1758050240186,1.42393836,116710.0,116700.0,0.001]
[1758050240847,1.01996381,116710.0,116700.0,0.001]
[1758050241417,1.42393836,116710.0,116700.0,0.001]
[1758050241642,0.61598926,116710.0,116700.0,0.001]
[1758050241832,1.42393836,116710.0,116700.0,0.001]
[1758050242866,1.15537836,116710.0,116700.0,0.001]
[1758050243243,1.42397836,116710.0,116700.0,0.001]
[1758050243904,1.51047981,116710.0,116700.0,0.001]
[1758050245156,1.52651882,116710.0,116700.0,0.001]
[1758050245347,1.52651943,116710.0,116700.0,0.001]
[1758050249198,1.52919954,116710.0,116700.0,0.001]
[1758050250512,1.26059954,116710.0,116700.0,0.001]
[1758050250729,1.52903954,116710.0,116700.0,0.001]
[1758050250963,1.26059954,116710.0,116700.0,0.001]
[1758050251177,1.44253809,116710.0,116700.0,0.001]
[1758050251487,0.36614899,116710.0,116700.0,0.001]
[1758050251617,1.44249809,116710.0,116700.0,0.001]
[1758050252505,1.17409809,116710.0,116700.0,0.001]
[1758050252706,1.44249809,116710.0,116700.0,0.001]
[1758050253457,1.44257809,116710.0,116700.0,0.001]
[1758050254319,1.52907954,116710.0,116700.0,0.001]
[1758050255413,1.26063907,116710.0,116700.0,0.001]
[1758050255597,1.52907907,116710.0,116700.0,0.001]
[1758050256030,1.44249762,116710.0,116700.0,0.001]
[1758050259597,1.44241762,116710.0,116700.0,0.001]
[1758050261091,1.03844307,116710.0,116700.0,0.001]
[1758050261824,0.99369121,116710.0,116700.0,0.001]
[1758050262156,0.9910111,116710.0,116700.0,0.001]
[1758050262385,0.99369121,116710.0,116700.0,0.001]
[1758050262597,1.03034305,116710.0,116700.0,0.001]
[1758050263303,1.0142639,116710.0,116700.0,0.001]
[1758050263531,1.03034428,116710.0,116700.0,0.001]
[1758050268489,1.02766417,116710.0,116700.0,0.001]
[1758050268711,1.03034428,116710.0,116700.0,0.001]
[1758050271119,1.02534428,116710.0,116700.0,0.001]
[1758050271350,1.05297148,116710.0,116700.0,0.001]
[1758050272214,1.02534428,116710.0,116700.0,0.001]
[1758050272424,0.75706428,116710.0,116700.0,0.001]
[1758050272609,1.02530428,116710.0,116700.0,0.001]
[1758050275067,1.07530428,116710.0,116700.0,0.001]
[1758050275286,1.41530428,116710.0,116700.0,0.001]
[1758050276666,1.41530456,116710.0,116700.0,0.001]
[1758050277361,1.14706456,116710.0,116700.0,0.001]
[1758050277572,1.41530456,116710.0,116700.0,0.001]
[1758050281498,1.14706456,116710.0,116700.0,0.001]
[1758050281729,1.41530456,116710.0,116700.0,0.001]
[1758050285086,1.41530456,116710.0,116700.0,0.00060024]
[1758050285692,1.41534456,116710.0,116700.0,0.00060024]
[1758050288856,1.39658379,116710.0,116700.0,0.00060024]
[1758050289098,1.4126436,116710.0,116700.0,0.00060024]
[1758050289248,1.39658379,116710.0,116700.0,0.00060024]
[1758050289667,1.3992642,116710.0,116700.0,0.00060024]
[1758050289983,1.41264372,116710.0,116700.0,0.00060024]
[1758050290190,1.39658379,116710.0,116700.0,0.00060024]
[1758050290587,1.41532431,116710.0,116700.0,0.00060024]
[1758050295239,1.41532758,116710.0,116700.0,0.00060024]
[1758050295864,1.41532776,116710.0,116700.0,0.00060024]
[1758050297224,1.41528776,116710.0,116700.0,0.00060024]
[1758050297412,1.05606507,116710.0,116700.0,0.00060024]
[1758050297632,1.41528776,116710.0,116700.0,0.00060024]
[1758050300832,1.14704776,116710.0,116700.0,0.00060024]
[1758050301047,1.41528776,116710.0,116700.0,0.00060024]
[1758050307671,1.54760776,116710.0,116700.0,0.00060024]
[1758050308307,0.17140898,116680.0,116670.0,0.02337]
[1758050308552,0.17140898,116680.0,116670.0,0.19479367]
[1758050308728,0.17140898,116680.0,116670.0,0.23719194]
[1758050308940,0.17150898,116680.0,116670.0,0.23719194]
[1758050309137,0.17150898,116680.0,116670.0,0.24034194]
[1758050309430,0.17150898,116680.0,116670.0,0.20100367]
[1758050310020,0.19726225,116680.0,116670.0,0.20400367]
[1758050310244,0.02585327,116680.0,116670.0,0.20400367]
[1758050310686,0.19726225,116680.0,116670.0,0.20400367]
[1758050313450,0.19726225,116680.0,116670.0,0.03258]
[1758050313638,0.21977975,116680.0,116670.0,0.03258]
[1758050318578,0.19726225,116680.0,116670.0,0.20400367]
[1758050319041,0.19726225,116680.0,116670.0,0.03258]
[1758050323106,0.60148384,116680.0,116670.0,0.03258]
[1758050324398,0.60148384,116680.0,116670.0,0.20400367]
[1758050324795,0.19726225,116680.0,116670.0,0.20400367]
[1758050325750,0.19726225,116680.0,116670.0,0.03258]
[1758050325906,0.19726225,116680.0,116670.0,0.30142]
[1758050326128,0.60148384,116680.0,116670.0,0.30142]
[1758050327580,0.19726225,116680.0,116670.0,0.30142]
[1758050329906,0.19726225,116680.0,116670.0,0.47284367]
[1758050330723,0.19726225,116680.0,116670.0,0.30142]
[1758050331884,0.19726225,116680.0,116670.0,0.03258]
[1758050332123,0.19726225,116680.0,116670.0,0.30134]
[1758050332521,0.26809609,116680.0,116670.0,0.3013]
[1758050332992,0.67231768,116680.0,116670.0,0.3013]
[1758050335166,0.67231768,116680.0,116670.0,0.03258]
[1758050335363,0.67231768,116680.0,116670.0,0.3013]
[1758050335924,0.67231768,116680.0,116670.0,0.29815]
[1758050336329,0.67231768,116680.0,116670.0,0.30132]
[1758050336639,0.60148384,116680.0,116670.0,0.30132]
[1758050336855,0.60148384,116680.0,116670.0,0.30128]
[1758050337370,0.60148384,116680.0,116670.0,0.0326]
[1758050337823,0.60148384,116680.0,116670.0,0.30128]
[1758050339180,0.19726225,116680.0,116670.0,0.30128]
[1758050341551,0.2837637,116680.0,116670.0,0.30128]
[1758050342085,0.02585327,116680.0,116670.0,0.87692526]
[1758050342738,0.0001,116680.0,116670.0,1.3676483]
[1758050343797,0.0001,116680.0,116670.0,1.39339746]
[1758050345737,0.0001,116680.0,116670.0,1.39349746]
[1758050347027,0.0001,116690.0,116680.0,0.17140898]
[1758050347240,0.0001,116690.0,116680.0,0.70576291]
[1758050347440,0.0001,116690.0,116680.0,0.68862202]
[1758050347653,0.0001,116690.0,116680.0,0.69062202]
[1758050347879,0.0001,116690.0,116680.0,0.71636771]
[1758050348979,0.0001,116690.0,116680.0,0.71936771]
[1758050349442,0.0001,116690.0,116680.0,0.71946771]
[1758050350022,0.0001,116690.0,116680.0,0.98806771]
[1758050352904,0.0001,116690.0,116680.0,0.98706771]
[1758050353473,0.0001,116690.0,116680.0,0.98806771]
[1758050354112,0.0001,116690.0,116680.0,0.98606771]
[1758050354749,0.0001,116700.0,116690.0,0.17139429]
[1758050354964,0.0001,116700.0,116690.0,0.78806675]
[1758050355178,0.0001,116700.0,116690.0,0.77292733]
[1758050355608,0.0001,116700.0,116690.0,0.79867302]
[1758050356040,0.0011,116700.0,116690.0,0.79867302]
[1758050356264,0.0011,116700.0,116690.0,1.06743302]
[1758050356898,0.0011,116700.0,116690.0,1.56749302]
[1758050357575,0.0011,116700.0,116690.0,1.56757302]
[1758050358740,0.0011,116700.0,116690.0,0.89455143]
[1758050358954,0.0011,116700.0,116690.0,1.16335143]
[1758050359162,0.0011,116700.0,116690.0,1.56757302]
[1758050360305,0.0011,116700.0,116690.0,1.16335143]
[1758050360518,0.0011,116700.0,116690.0,1.56757302]
[1758050361204,0.0011,116700.0,116690.0,1.29877302]
[1758050361411,0.0011,116700.0,116690.0,1.56757302]
[1758050362124,0.0011,116700.0,116690.0,1.13760574]
[1758050362415,0.0011,116700.0,116690.0,1.54182733]
[1758050363896,0.0011,116700.0,116690.0,1.13760574]
[1758050364107,0.0011,116700.0,116690.0,1.54186733]
[1758050365177,0.1724796,116700.0,116690.0,1.54186733]
[1758050366302,0.0011,116700.0,116690.0,1.54186733]
[1758050367328,0.1724796,116700.0,116690.0,1.13764574]
[1758050367548,0.0011,116700.0,116690.0,1.13764574]
[1758050367750,0.0011,116700.0,116690.0,1.54186733]
[1758050371017,0.0011,116700.0,116690.0,1.13748574]
[1758050371243,0.0011,116700.0,116690.0,1.54170733]
[1758050372847,0.0011,116700.0,116690.0,1.13748574]
[1758050373071,0.0011,116700.0,116690.0,1.54170733]
[1758050373602,0.0011,116700.0,116690.0,1.13748574]
[1758050373812,0.0011,116700.0,116690.0,1.54170733]
[1758050376784,0.0011,116700.0,116690.0,1.13748574]
[1758050377006,0.0011,116700.0,116690.0,1.54170733]
[1758050377252,0.1724796,116700.0,116690.0,0.86880574]
[1758050377443,0.0011,116700.0,116690.0,1.54174733]
[1758050380933,0.0011,116700.0,116690.0,1.13752574]
[1758050381175,0.0011,116700.0,116690.0,1.54174733]
[1758050381795,0.1724796,116700.0,116690.0,1.11091574]
[1758050382014,0.1724796,116700.0,116690.0,1.13428574]
[1758050382436,0.1724796,116700.0,116690.0,0.96289145]
[1758050382647,0.1724796,116700.0,116690.0,1.13428574]
[1758050383858,0.1746196,116700.0,116690.0,0.75581429]
[1758050384087,0.2005496,116700.0,116690.0,1.02241429]
[1758050384381,0.2005496,116700.0,116690.0,1.02445429]
[1758050384592,0.1975096,116700.0,116690.0,1.02445429]
[1758050385653,0.1975096,116700.0,116690.0,0.85306]
[1758050385881,0.2005496,116700.0,116690.0,0.85102]
[1758050386837,0.1776596,116700.0,116690.0,0.58242]
[1758050387059,0.55972191,116700.0,116690.0,0.85094]
[1758050387289,0.55972191,116700.0,116690.0,1.02233429]
[1758050387499,0.2005496,116700.0,116690.0,0.85094]
[1758050389166,0.55972191,116700.0,116690.0,0.85094]
[1758050391299,0.55972191,116700.0,116690.0,0.58242]
[1758050391522,0.55972191,116700.0,116690.0,0.85086]
[1758050391763,0.63284074,116700.0,116690.0,0.5001]
[1758050392001,0.55972191,116700.0,116690.0,0.7685]
[1758050392696,0.55972191,116700.0,116690.0,0.7684]
[1758050395539,0.2005496,116700.0,116690.0,0.7684]
[1758050395725,0.55972191,116700.0,116690.0,0.7684]
[1758050398755,0.55972191,116700.0,116690.0,0.2684]
[1758050398985,0.64622336,116700.0,116690.0,0.2684]
[1758050399727,0.28705105,116700.0,116690.0,0.2684]
[1758050399913,0.64622336,116700.0,116690.0,0.2684]
[1758050405831,0.17139429,116690.0,116680.0,0.02347]
[1758050406012,0.17139429,116690.0,116680.0,0.30893089]
[1758050406230,0.17139429,116690.0,116680.0,0.29382]
[1758050406862,0.17149429,116690.0,116680.0,0.29382]
[1758050407202,0.17149429,116690.0,116680.0,0.29682]
[1758050411429,0.17149429,116690.0,116680.0,0.46822898]
[1758050411635,0.17149429,116690.0,116680.0,0.29986]
[1758050412386,0.17149429,116690.0,116680.0,0.47126898]
[1758050412599,0.17149429,116690.0,116680.0,0.03154]
[1758050412814,0.17149429,116690.0,116680.0,0.31396089]
[1758050413024,0.17149429,116690.0,116680.0,0.29682]
[1758050414008,0.17149429,116690.0,116680.0,0.0285]
[1758050414211,0.17149429,116690.0,116680.0,0.31396089]
[1758050414483,0.17149429,116690.0,116680.0,0.29682]
[1758050415583,0.17149429,116690.0,116680.0,0.0285]
[1758050415794,0.17149429,116690.0,116680.0,0.31396089]
[1758050415999,0.17149429,116690.0,116680.0,0.29682]
[1758050418040,0.19780706,116690.0,116680.0,0.29682]
[1758050420051,0.19976706,116690.0,116680.0,0.00513]
[1758050420263,0.22269706,116690.0,116680.0,0.29059089]
[1758050420464,0.22269706,116690.0,116680.0,0.27345]
[1758050420745,0.19976706,116690.0,116680.0,0.27345]
[1758050420959,0.17345429,116690.0,116680.0,0.00513]
[1758050421183,0.5587866,116690.0,116680.0,0.27345]
[1758050422302,0.5555566,116690.0,116680.0,0.27345]
[1758050422521,0.57934711,116690.0,116680.0,0.27345]
[1758050423172,0.2201748,116690.0,116680.0,0.27345]
[1758050423354,0.1972448,116690.0,116680.0,0.27345]
[1758050423585,0.1972448,116690.0,116680.0,0.29603]
[1758050427095,0.1992048,116690.0,116680.0,0.27345]
[1758050427323,0.2221348,116690.0,116680.0,0.27345]
[1758050428564,0.2221348,116690.0,116680.0,0.00513]
[1758050428740,0.2253648,116690.0,116680.0,0.27345]
[1758050429482,0.2221348,116690.0,116680.0,0.27345]
[1758050429889,0.1992048,116690.0,116680.0,0.27345]
[1758050430348,0.1972448,116690.0,116680.0,0.27345]
[1758050430548,0.1972448,116690.0,116680.0,0.29603]
[1758050432309,0.1972448,116690.0,116680.0,0.02771]
[1758050432530,0.1992048,116690.0,116680.0,0.31317089]
[1758050432730,0.1972448,116690.0,116680.0,0.29603]
[1758050432891,0.17149429,116690.0,116680.0,0.29603]
[1758050434189,0.17149429,116690.0,116680.0,0.46743898]
[1758050435087,0.17149429,116690.0,116680.0,0.02771]
[1758050435295,0.17149429,116690.0,116680.0,0.31317089]
[1758050435519,0.17149429,116690.0,116680.0,0.29603]
[1758050436545,0.17149429,116690.0,116680.0,0.46743898]
[1758050436752,0.17149429,116690.0,116680.0,0.47049898]
[1758050436975,0.17149429,116690.0,116680.0,0.47101898]
[1758050437457,0.0001,116690.0,116680.0,0.47101898]
[1758050437696,0.0001,116690.0,116680.0,0.83019129]
[1758050437825,0.0001,116690.0,116680.0,0.89046231]
[1758050437826,0.17149429,116690.0,116680.0,0.89046231]
[1758050438186,0.17149429,116690.0,116680.0,0.96791898]
[1758050438539,0.17149429,116690.0,116680.0,0.97097898]
[1758050439694,0.0001,116690.0,116680.0,0.97097898]
[1758050440694,0.17149429,116690.0,116680.0,0.97097898]
[1758050440900,0.17149429,116690.0,116680.0,1.33015129]
[1758050441120,0.0001,116690.0,116680.0,1.33015129]
[1758050441297,0.17149429,116690.0,116680.0,1.33015129]
[1758050441503,0.0001,116690.0,116680.0,1.33015129]
[1758050441729,0.0001,116690.0,116680.0,0.97097898]
[1758050441931,0.0001,116690.0,116680.0,1.33015129]
[1758050442967,0.17149429,116690.0,116680.0,0.97097898]
[1758050443181,0.17149429,116690.0,116680.0,1.33015129]
[1758050443387,0.17149429,116690.0,116680.0,1.35590016]
[1758050443767,0.0001,116690.0,116680.0,1.35590016]
[1758050444541,0.17149429,116690.0,116680.0,0.72844785]
[1758050444762,0.17149429,116690.0,116680.0,1.35590016]
[1758050445184,0.17149429,116690.0,116680.0,0.55703887]
[1758050445398,0.17661429,116690.0,116680.0,0.79915887]
[1758050445607,0.19817429,116690.0,116680.0,0.79915887]
[1758050445809,0.57780372,116690.0,116680.0,0.79915887]
[1758050446027,0.17149429,116690.0,116680.0,0.99672785]
[1758050446237,0.17149429,116690.0,116680.0,0.99366785]
[1758050446387,0.17149429,116690.0,116680.0,0.55397887]
[1758050446596,0.17149429,116690.0,116680.0,0.82225887]
[1758050447243,0.17364429,116690.0,116680.0,0.79915887]
[1758050447463,0.20114429,116690.0,116680.0,0.79915887]
[1758050448244,0.60530372,116690.0,116680.0,0.79915887]
[1758050448466,0.60530372,116690.0,116680.0,0.77341]
[1758050448678,0.20114429,116690.0,116680.0,0.77341]
[1758050448883,0.60530372,116690.0,116680.0,0.77341]
[1758050449944,0.58077372,116690.0,116680.0,0.77138]
[1758050450148,0.60530372,116690.0,116680.0,0.5031]
[1758050450352,0.60530372,116690.0,116680.0,0.503]
[1758050450562,0.63105655,116690.0,116680.0,0.503]
[1758050451941,0.717558,116690.0,116680.0,0.503]
[1758050452428,0.985838,116690.0,116680.0,0.503]
[1758050452646,0.73362741,116690.0,116680.0,0.503]
[1758050452841,1.00190741,116690.0,116680.0,0.502]
[1758050453276,1.08840886,116690.0,116680.0,0.502]
[1758050453746,1.08840886,116690.0,116680.0,0.5]
[1758050453943,1.08840886,116690.0,116680.0,0.501]
[1758050454426,1.08840886,116690.0,116680.0,0.001]
[1758050455068,1.11856076,116690.0,116680.0,0.001]
[1758050460398,0.85028076,116690.0,116680.0,0.001]
[1758050460588,1.11856076,116690.0,116680.0,0.001]
[1758050461318,1.11853834,116690.0,116680.0,0.001]
[1758050462458,0.44609891,116690.0,116680.0,0.001]
[1758050462588,0.62787746,116690.0,116680.0,0.001]
[1758050462784,1.03203689,116690.0,116680.0,0.001]
[1758050465355,0.76375689,116690.0,116680.0,0.001]
[1758050465572,1.03203689,116690.0,116680.0,0.001]
[1758050465743,1.11853834,116690.0,116680.0,0.001]
[1758050475313,0.35959746,116690.0,116680.0,0.001]
[1758050475516,1.03203689,116690.0,116680.0,0.001]
[1758050479927,1.0320547,116690.0,116680.0,0.001]
[1758050483583,1.0320547,116690.0,116680.0,0.00313]
[1758050483584,0.88575135,116690.0,116680.0,0.00313]
[1758050483804,0.88575135,116690.0,116680.0,0.02884]
[1758050484216,0.88575135,116690.0,116680.0,0.02587]
[1758050484436,0.88576924,116690.0,116680.0,0.02587]
[1758050485059,0.21332981,116690.0,116680.0,0.5988093]
[1758050485261,0.21332981,116690.0,116680.0,0.20024898]
[1758050485724,0.19724712,116690.0,116680.0,0.20024898]
[1758050485907,0.19724712,116690.0,116680.0,0.02884]
[1758050486108,0.19724712,116690.0,116680.0,0.00313]
[1758050486308,0.60339655,116690.0,116680.0,0.00313]
[1758050486540,0.60140655,116690.0,116680.0,0.02587]
[1758050486731,0.687908,116690.0,116680.0,0.02587]
[1758050486891,0.687908,116690.0,116680.0,0.02884]
[1758050488691,0.687908,116690.0,116680.0,0.02587]
[1758050488905,0.687908,116690.0,116680.0,0.20024898]
[1758050489243,0.02585283,116690.0,116680.0,0.58166841]
[1758050489466,0.17149429,116690.0,116680.0,0.60440841]
[1758050489876,0.0001,116690.0,116680.0,0.60440841]
[1758050490060,0.17149429,116690.0,116680.0,0.60440841]
[1758050491438,0.17149429,116690.0,116680.0,0.20024898]
[1758050496596,0.0001,116690.0,116680.0,0.60440841]
[1758050497244,0.0001,116690.0,116680.0,0.60450841]
[1758050497659,0.0001,116690.0,116680.0,0.87274841]
[1758050498369,0.0001,116690.0,116680.0,0.60450841]
[1758050498576,0.17149429,116690.0,116680.0,0.87274841]
[1758050498791,0.17149429,116690.0,116680.0,0.46858898]
[1758050499006,0.17149429,116690.0,116680.0,0.20034898]
[1758050499215,0.17149429,116690.0,116680.0,0.87274841]
[1758050500242,0.17149429,116690.0,116680.0,0.20034898]
[1758050500448,0.17149429,116690.0,116680.0,0.87274841]
[1758050500645,0.65237711,116690.0,116680.0,0.27147]
[1758050501072,0.67647711,116690.0,116680.0,0.27147]
[1758050501553,0.65237711,116690.0,116680.0,0.27147]
[1758050501764,0.24821768,116690.0,116680.0,0.44287898]
[1758050502006,0.17149429,116690.0,116680.0,0.46926898]
[1758050502197,0.17149429,116690.0,116680.0,0.20102898]
[1758050502398,0.17149429,116690.0,116680.0,0.29786]
[1758050502610,0.17149429,116690.0,116680.0,0.46926898]
[1758050506437,0.17149429,116690.0,116680.0,0.46624898]
[1758050507745,0.25799574,116690.0,116680.0,0.46624898]
[1758050509152,0.25799574,116690.0,116680.0,0.46926898]
[1758050509672,0.17149429,116690.0,116680.0,0.46926898]
[1758050511807,0.17149429,116690.0,116680.0,0.46624898]
[1758050513217,0.0001,116690.0,116680.0,0.46624898]
[1758050513511,0.17149429,116690.0,116680.0,0.46941898]
[1758050520298,0.17149429,116690.0,116680.0,0.96941898]
[1758050522838,0.0001,116690.0,116680.0,0.96941898]
[1758050523357,0.53074504,116690.0,116680.0,0.96941898]
[1758050524192,0.0001,116690.0,116680.0,1.41517118]
[1758050525019,0.0001,116690.0,116680.0,1.44091813]
[1758050525239,0.0001,116690.0,116680.0,1.08166738]
[1758050525376,0.0001,116690.0,116680.0,0.81342738]
[1758050525589,0.0001,116690.0,116680.0,1.08158738]
[1758050527111,0.0001,116690.0,116680.0,0.81342738]
[1758050527355,0.0001,116690.0,116680.0,1.08158738]
[1758050528508,0.35935075,116690.0,116680.0,1.08158738]
[1758050528727,0.35935075,116690.0,116680.0,0.94279898]
[1758050528728,0.53581504,116690.0,116680.0,0.94279898]
[1758050528954,0.55951504,116690.0,116680.0,0.77139]
[1758050529183,0.62448747,116690.0,116680.0,0.94279898]
[1758050529408,0.55646504,116690.0,116680.0,0.77139]
[1758050529613,0.53581504,116690.0,116680.0,0.50323]
[1758050529819,0.55951504,116690.0,116680.0,0.76926]
[1758050531097,0.20026429,116690.0,116680.0,0.76926]
[1758050531311,0.55951504,116690.0,116680.0,0.76926]